bitfinex-derivatives/quotes_SOLF0:USTF0_20250714
["timestamp","ask_amount","ask_price","bid_price","bid_amount"]
[1752488543092,5.9864,167.02,167.0,5.987]
[1752488544493,3.14830832,167.07,167.0,5.987]
[1752488544698,3.14830832,167.07,166.99,3.14830832]
[1752488545098,5.986,167.04,167.01,5.9866]
[1752488545298,3.14830832,167.07,166.99,3.14830832]
[1752488545499,517.4,167.08,167.01,3.14830832]
[1752488545701,5.9855,167.05,167.02,5.9862]
[1752488546002,517.4,167.08,167.02,5.9862]
[1752488546699,5.9853,167.06,167.03,5.9859]
[1752488547401,5.9853,167.06,167.02,3.14830832]
[1752488547402,5.9847,167.07,167.04,5.9856]
[1752488547592,176.62,167.1,167.04,3.14830832]
[1752488547794,176.62,167.1,167.06,3.14830832]
[1752488547992,0.04176706,167.09,167.06,3.14830832]
[1752488548195,0.04176706,167.09,166.96,15.12550832]
[1752488548396,5.9843,167.08,167.06,0.03940415]
[1752488548801,5.9843,167.08,167.03,3.14830832]
[1752488549002,5.9843,167.08,167.05,5.9852]
[1752488549806,5.9846,167.07,167.04,5.9856]
[1752488550105,179.76830832,167.1,167.02,3.14830832]
[1752488550504,5.985,167.06,167.02,3.14830832]
[1752488550706,179.76830832,167.1,166.96,15.12550832]
[1752488550906,179.76830832,167.1,167.02,3.14830832]
[1752488551203,5.9851,167.06,167.03,5.9858]
[1752488551406,3.14830832,167.06,166.98,3.14830832]
[1752488551706,5.9866,167.02,166.96,3.14830832]
[1752488552005,3.14830832,167.04,166.96,3.14830832]
[1752488552201,5.9874,167.0,166.97,5.988]
[1752488552402,176.62,167.1,166.96,3.14830832]
[1752488552601,3.14830832,167.04,166.96,3.14830832]
[1752488553907,5.9877,166.99,166.96,5.9885]
[1752488555010,5.9873,167.0,166.97,5.9882]
[1752488555310,3.14830832,167.02,166.94,3.14830832]
[1752488555508,5.9874,167.0,166.96,5.9883]
[1752488555812,5.9874,167.0,166.94,3.14830832]
[1752488556104,5.9874,167.0,166.95,5.9886]
[1752488556311,5.9878,166.99,166.94,3.14830832]
[1752488557117,5.9878,166.99,166.88,3.14830832]
[1752488557318,5.9878,166.99,166.96,5.9884]
[1752488557520,5.9873,167.0,166.94,3.14830832]
[1752488557818,3.14830832,167.06,167.0,5.9871]
[1752488558009,3.14830832,167.06,166.98,3.14830832]
[1752488558619,5.9865,167.02,166.99,5.9873]
[1752488561018,5.9865,167.02,166.87,669.0474385]
[1752488561316,5.9865,167.02,166.97,3.14830832]
[1752488561513,5.9868,167.01,166.88,3.14830832]
[1752488561717,5.9868,167.01,166.97,3.14830832]
[1752488562418,5.9865,167.02,166.99,5.9873]
[1752488562719,5.9865,167.02,166.97,3.14830832]
[1752488563116,5.9865,167.02,166.9,11.9812]
[1752488563416,5.9865,167.02,166.99,5.9872]
[1752488563915,5.9859,167.04,166.97,3.14830832]
[1752488564114,5.9859,167.04,166.88,3.14830832]
[1752488564115,3.14830832,167.07,166.96,3.14830832]
[1752488564320,176.24,167.08,167.01,3.14830832]
[1752488564523,0.03990068,167.03,167.02,5.9862]
[1752488564818,176.24,167.08,167.02,5.9862]
[1752488566325,176.24,167.08,167.03,3.14830832]
[1752488567326,176.24,167.08,167.04,5.9855]
[1752488567622,176.24,167.08,167.05,3.14830832]
[1752488567918,5.985,167.06,167.05,3.14830832]
[1752488568222,176.24,167.08,167.05,3.14830832]
[1752488568524,5.9847,167.07,167.05,3.14830832]
[1752488569222,5.985,167.06,167.05,3.14830832]
[1752488569421,5.985,167.06,167.04,9.13380832]
[1752488570324,5.9847,167.07,167.04,3.14830832]
[1752488571522,5.985,167.06,167.04,9.13390832]
[1752488571924,517.34,167.11,167.04,3.14830832]
[1752488572120,5.9846,167.08,167.05,5.9853]
[1752488573820,5.984,167.09,167.06,3.14830832]
[1752488574320,5.9844,167.08,167.04,3.14830832]
[1752488575225,5.9844,167.08,167.06,9.13320832]
[1752488576119,5.9841,167.09,167.06,9.13320832]
[1752488576325,176.0,167.13,167.06,3.14830832]
[1752488577126,5.9843,167.08,167.06,9.13310832]
[1752488578727,179.12830832,167.14,167.06,9.13310832]
[1752488579828,5.9843,167.08,167.06,9.13310832]
[1752488580027,5.9843,167.08,167.06,3.14830832]
[1752488580822,5.9846,167.07,167.04,3.14830832]
[1752488582127,5.9846,167.07,167.05,5.9853]
[1752488582823,5.985,167.06,167.04,9.13400832]
[1752488583023,3.14830832,167.12,167.04,3.14830832]
[1752488583427,5.9847,167.07,167.05,5.9853]
[1752488584523,5.985,167.06,167.04,9.13380832]
[1752488584729,3.14830832,167.1,167.01,3.14830832]
[1752488585028,3.14830832,167.13,167.05,3.14830832]
[1752488585628,3.14830832,167.13,167.06,5.9849]
[1752488586232,529.2408,167.19,167.05,3.14830832]
[1752488586529,3.14830832,167.14,167.05,3.14830832]
[1752488587028,5.9837,167.1,167.07,9.13270832]
[1752488587723,5.9832,167.11,167.08,5.9841]
[1752488588122,179.10830832,167.18,167.09,3.14830832]
[1752488588327,179.10830832,167.18,167.11,3.14830832]
[1752488589129,179.10830832,167.18,167.11,9.13140832]
[1752488589424,175.96,167.18,167.11,9.13140832]
[1752488590421,175.96,167.18,167.11,5.9831]
[1752488590627,179.10830832,167.18,167.09,3.14830832]
[1752488591229,5.983,167.12,167.09,9.13200832]
[1752488591730,5.983,167.12,167.09,3.14830832]
[1752488592731,5.983,167.12,167.04,3.14830832]
[1752488593032,5.983,167.12,167.09,3.14830832]
[1752488593232,5.9833,167.11,167.09,9.13200832]
[1752488596529,5.983,167.12,167.1,5.9835]
[1752488598533,5.983,167.12,167.09,9.13200832]
[1752488598734,179.10830832,167.18,167.09,3.14830832]
[1752488599229,5.9831,167.12,167.09,9.13220832]
[1752488599726,5.9832,167.11,167.09,9.13220832]
[1752488603538,5.983,167.12,167.09,9.13220832]
[1752488603935,179.04830832,167.18,167.09,3.14830832]
[1752488604139,532.38910832,167.19,167.11,3.14830832]
[1752488604737,5.9826,167.13,167.11,3.14830832]
[1752488605034,5.9826,167.13,167.1,3.14830832]
[1752488606140,5.9826,167.13,167.11,5.9831]
[1752488606441,5.9822,167.14,167.1,3.14830832]
[1752488606936,5.9822,167.14,167.12,5.9828]
[1752488607240,5.9822,167.14,167.1,3.14830832]
[1752488607441,5.9822,167.14,167.11,5.983]
[1752488607940,5.9822,167.14,167.11,5.9831]
[1752488608140,532.38910832,167.19,167.11,5.9831]
[1752488608341,520.42830832,167.19,167.1,3.14830832]
[1752488608639,5.982,167.15,167.12,5.9825]
[1752488608842,520.42830832,167.19,167.12,5.9825]
[1752488609041,517.28,167.19,167.12,5.9825]
[1752488609241,3.14830832,167.18,167.12,5.9825]
[1752488609542,3.14830832,167.18,167.13,5.9824]
[1752488609740,5.982,167.15,167.1,3.14830832]
[1752488610043,5.982,167.15,167.12,5.9827]
[1752488610344,3.14830832,167.18,167.1,3.14830832]
[1752488610744,3.14830832,167.16,167.04,15.11930832]
[1752488610944,3.14830832,167.16,167.09,3.14830832]
[1752488611242,3.14830832,167.16,167.11,5.983]
[1752488613845,5.9826,167.13,167.1,9.13170832]
[1752488614145,3.14830832,167.16,167.1,9.13170832]
[1752488614448,5.9827,167.13,167.1,9.13170832]
[1752488614642,5.9827,167.13,167.11,5.9831]
[1752488615443,5.9823,167.14,167.11,5.9831]
[1752488615645,5.9823,167.14,167.12,5.9828]
[1752488615847,517.28,167.19,167.12,3.14830832]
[1752488616948,3.14830832,167.18,167.1,3.14830832]
[1752488618149,5.9823,167.14,167.11,5.983]
[1752488618747,5.9825,167.13,167.1,9.13160832]
[1752488619054,3.14830832,167.12,167.04,3.14830832]
[1752488619349,5.9841,167.09,167.04,3.14830832]
[1752488619552,5.9841,167.09,167.06,5.9848]
[1752488621854,5.9837,167.1,167.05,3.14830832]
[1752488622152,3.14830832,167.14,167.07,3.14830832]
[1752488622458,5.9836,167.1,167.08,5.984]
[1752488622655,3.14830832,167.14,167.08,5.984]
[1752488622955,5.982,167.15,167.12,5.9826]
[1752488623355,517.28,167.19,167.12,5.9826]
[1752488623653,517.28,167.19,167.13,3.14830832]
[1752488624056,5.9816,167.16,167.14,5.9821]
[1752488624358,517.28,167.19,167.13,3.14830832]
[1752488624656,5.9816,167.16,167.13,9.13070832]
[1752488625460,5.9818,167.15,167.13,9.13070832]
[1752488627761,517.28,167.19,167.11,3.14830832]
[1752488627954,3.14830832,167.18,167.11,3.14830832]
[1752488628159,3.14830832,167.12,167.0,528.9736]
[1752488628459,3.14830832,167.12,167.08,5.9841]
[1752488628859,3.14830832,167.12,167.04,3.14830832]
[1752488629159,5.9838,167.1,167.04,3.14830832]
[1752488629859,5.9838,167.1,167.07,5.9844]
[1752488630055,5.9834,167.11,167.06,3.14830832]
[1752488630257,178.96830832,167.14,167.06,3.14830832]
[1752488630562,175.82,167.14,167.08,3.14830832]
[1752488632061,3.14830832,167.18,167.12,5.9828]
[1752488632261,693.08,167.19,167.12,9.13110832]
[1752488633260,5.982,167.15,167.12,9.13110832]
[1752488633858,5.982,167.15,167.12,3.14830832]
[1752488634064,693.08,167.19,167.12,3.14830832]
[1752488634763,5.9817,167.16,167.13,5.9823]
[1752488636462,5.9817,167.16,167.14,5.9821]
[1752488636763,693.08,167.19,167.12,3.14830832]
[1752488637260,693.08,167.19,167.13,5.9824]
[1752488637662,3.14830832,167.18,167.13,5.9824]
[1752488637865,5.9819,167.15,167.12,9.13090832]
[1752488638464,3.14830832,167.18,167.12,5.9826]
[1752488639069,5.9822,167.14,167.12,5.9826]
[1752488639659,5.9816,167.16,167.05,11.9707]
[1752488639865,693.08,167.19,167.11,3.14830832]
[1752488640160,5.9818,167.15,167.11,3.14830832]
[1752488640568,3.14830832,167.18,167.11,3.14830832]
[1752488640766,3.14830832,167.18,167.09,3.14830832]
[1752488640969,5.9823,167.14,167.11,5.983]
[1752488641166,3.14830832,167.18,167.11,5.983]
[1752488641771,3.14830832,167.22,167.15,3.14830832]
[1752488641974,175.76,167.21,167.15,3.14830832]
[1752488642172,5.9809,167.18,167.15,9.12970832]
[1752488642374,5.9809,167.18,167.15,3.14830832]
[1752488642673,5.9809,167.18,167.16,5.9812]
[1752488643273,5.9812,167.17,167.15,9.12990832]
[1752488643472,5.9812,167.17,167.13,3.14830832]
[1752488644075,5.9812,167.17,167.14,5.982]
[1752488644276,3.14830832,167.2,167.11,3.14830832]
[1752488644574,3.14830832,167.2,167.12,5.9826]
[1752488644772,5.9822,167.14,167.11,3.14830832]
[1752488645075,5.9822,167.14,167.12,5.9826]
[1752488645274,5.982,167.15,167.12,5.9826]
[1752488645876,5.9825,167.13,167.11,9.13130832]
[1752488646072,3.14830832,167.19,167.11,9.13130832]
[1752488646374,5.9823,167.14,167.11,5.983]
[1752488646575,5.9823,167.14,167.11,9.13130832]
[1752488646776,3.14830832,167.19,167.11,9.13130832]
[1752488647378,3.14830832,167.19,167.12,5.9828]
[1752488647676,5.9822,167.14,167.12,5.9828]
[1752488648376,5.9816,167.16,167.13,5.9823]
[1752488648573,178.86830832,167.21,167.13,3.14830832]
[1752488649778,5.982,167.15,167.13,3.14830832]
[1752488650278,5.982,167.15,167.12,5.9827]
[1752488650480,5.9822,167.14,167.12,5.9827]
[1752488650873,5.982,167.15,167.12,5.9827]
[1752488653481,5.9824,167.14,167.12,5.9827]
[1752488653981,5.9824,167.14,167.13,4.71351418]
[1752488656275,5.9826,167.13,167.09,3.14830832]
[1752488656482,0.03818208,167.15,167.1,4.71379088]
[1752488656681,5.9823,167.14,167.11,10.69679088]
[1752488656881,5.9823,167.14,167.12,4.71379088]
[1752488657076,5.9823,167.14,167.11,5.983]
[1752488657275,5.9823,167.14,167.12,4.71371513]
[1752488657473,5.9823,167.14,167.11,5.983]
[1752488657783,5.9825,167.13,167.12,4.71362245]
[1752488658487,5.9838,167.1,167.06,8.18061369]
[1752488658783,5.9838,167.1,167.07,10.69848188]
[1752488658980,5.9838,167.1,167.08,4.71398188]
[1752488659284,6.02153539,167.1,167.09,4.71398188]
[1752488660384,5.9843,167.08,167.03,5.03230537]
[1752488660584,5.9843,167.08,167.05,5.985]
[1752488660780,5.9843,167.08,167.06,4.71288619]
[1752488660984,5.9843,167.08,167.07,4.71288619]
[1752488661285,0.03773539,167.1,167.07,4.71288619]
[1752488661286,5.9841,167.09,167.07,4.71288619]
[1752488661485,5.9841,167.09,167.08,4.71288619]
[1752488661887,6.02153539,167.1,167.08,4.71288619]
[1752488662091,6.02153539,167.1,167.04,5.03230537]
[1752488662388,6.02153539,167.1,167.05,4.71213432]
[1752488662587,6.02153539,167.1,167.07,5.9845]
[1752488662782,5.9839,167.09,167.08,4.71213432]
[1752488663188,5.9839,167.09,167.03,8.18061369]
[1752488663189,0.03773539,167.1,167.03,8.18061369]
[1752488663483,5.9843,167.08,167.04,4.71127348]
[1752488663692,5.9843,167.08,167.05,10.69637348]
[1752488663890,5.9843,167.08,167.06,4.71037711]
[1752488664090,5.9843,167.08,167.05,5.9851]
[1752488664286,5.9843,167.08,167.06,4.71037711]
[1752488664491,0.03773539,167.1,167.07,4.7098546]
[1752488664691,0.03773539,167.1,167.03,8.17739224]
[1752488664891,0.03773539,167.1,167.04,4.70977712]
[1752488665190,6.02143539,167.1,167.07,5.9844]
[1752488665690,5.984,167.09,167.06,5.9849]
[1752488665888,5.984,167.09,167.07,4.7097614]
[1752488666090,5.984,167.09,167.03,8.17739224]
[1752488666291,6.02143539,167.1,167.07,5.9846]
[1752488666487,0.03773539,167.1,167.05,3.14830832]
[1752488666694,0.03773539,167.1,167.06,4.70936796]
[1752488666892,0.03773539,167.1,167.07,4.70936796]
[1752488667187,0.03773539,167.1,167.05,3.14830832]
[1752488667388,0.03773539,167.1,167.06,4.70884122]
[1752488667594,0.03773539,167.1,167.07,4.70884122]
[1752488667887,0.03773539,167.1,167.05,3.14830832]
[1752488668086,0.03773539,167.1,167.06,4.70884122]
[1752488668292,0.03773539,167.1,167.09,5.9839]
[1752488670194,0.03773539,167.1,167.08,5.9841]
[1752488670396,0.03773539,167.1,167.07,3.14830832]
[1752488670600,0.03773539,167.1,167.08,4.70700555]
[1752488670786,0.03773539,167.1,167.09,4.70700555]
[1752488671191,0.03773539,167.1,167.09,10.69090555]
[1752488675602,0.03773539,167.1,167.09,4.70700555]
[1752488675799,0.03773539,167.1,167.08,5.9842]
[1752488677002,0.03773539,167.1,167.07,9.13290832]
[1752488677200,0.03773539,167.1,167.08,4.7066231]
[1752488677503,0.03773539,167.1,167.08,5.9842]
[1752488678097,6.02133539,167.1,167.07,5.9844]
[1752488678302,6.02133539,167.1,167.08,4.70662833]
[1752488678498,0.03773539,167.1,167.05,3.14830832]
[1752488678702,3.14830832,167.18,167.09,3.14830832]
[1752488679002,3.14830832,167.18,167.11,3.14830832]
[1752488679202,5.9823,167.14,167.11,9.13130832]
[1752488679798,3.14830832,167.2,167.11,3.14830832]
[1752488680103,3.14830832,167.2,167.11,3.18769615]
[1752488680304,3.14830832,167.2,167.12,4.70607409]
[1752488680501,5.9816,167.16,167.13,5.9823]
[1752488680903,5.9816,167.16,167.13,6.02718958]
[1752488683005,5.9819,167.15,167.13,6.02718958]
[1752488683401,5.9819,167.15,167.13,0.04488958]
[1752488686408,5.9821,167.14,167.13,0.04488958]
[1752488686907,3.14830832,167.2,167.13,0.04488958]
[1752488688208,5.982,167.15,167.13,0.04488958]
[1752488688910,5.9821,167.14,167.13,0.04488958]
[1752488695315,3.14830832,167.19,167.13,0.04488958]
[1752488695516,3.14830832,167.19,167.13,3.1931979]
[1752488695714,175.72,167.21,167.13,3.1931979]
[1752488696015,175.72,167.21,167.14,10.68303815]
[1752488696216,175.72,167.21,167.14,5.9819]
[1752488696916,5.9813,167.17,167.14,5.9819]
[1752488698214,5.9813,167.17,167.15,5.9816]
[1752488698719,5.9813,167.17,167.14,5.982]
[1752488701423,5.9813,167.17,167.15,5.9818]
[1752488702421,3.14830832,167.22,167.15,3.14830832]
[1752488702722,3.14830832,167.25,167.18,3.14830832]
[1752488702918,3.14830832,167.25,167.19,4.70039766]
[1752488703119,5.98,167.21,167.18,3.14830832]
[1752488703319,3.14830832,167.25,167.19,4.69895121]
[1752488703521,3.14830832,167.25,167.18,3.14830832]
[1752488703822,5.98,167.2,167.19,4.69621112]
[1752488704026,3.14830832,167.25,167.19,4.69621112]
[1752488704222,3.14830832,167.25,167.18,9.17418567]
[1752488704423,3.14830832,167.25,167.19,4.69601267]
[1752488704724,3.14830832,167.25,167.18,3.19348567]
[1752488704921,3.14830832,167.25,167.19,4.69376803]
[1752488705120,3.14830832,167.25,167.18,3.19348567]
[1752488706423,3.14830832,167.23,167.18,0.04517735]
[1752488707625,5.9804,167.19,167.18,0.04517735]
[1752488710230,3.14830832,167.23,167.18,0.04517735]
[1752488710427,3.14830832,167.27,167.19,3.14830832]
[1752488710627,178.52830832,167.28,167.19,3.14830832]
[1752488710927,3.14830832,167.23,167.14,5.02908392]
[1752488711226,3.14830832,167.23,167.22,0.03945117]
[1752488711427,3.14830832,167.25,167.17,3.14830832]
[1752488711627,3.14830832,167.25,167.21,0.0407061]
[1752488712131,11.9551,167.27,167.21,0.0407061]
[1752488712326,3.14830832,167.25,167.21,0.0407061]
[1752488712830,5.9793,167.22,167.21,0.0407061]
[1752488713333,5.9793,167.22,167.21,2.9726763]
[1752488720231,5.979,167.23,167.21,2.9726763]
[1752488720528,11.9522,167.32,167.22,6.08027852]
[1752488720726,175.2,167.31,167.23,2.9319702]
[1752488720931,175.2,167.31,167.24,2.9319702]
[1752488720932,178.34830832,167.31,167.24,2.9319702]
[1752488721131,178.34830832,167.31,167.25,2.9319702]
[1752488721335,175.2,167.31,167.26,2.9319702]
[1752488721532,178.34830832,167.31,167.27,2.9319702]
[1752488721728,178.34830832,167.31,167.28,2.9319702]
[1752488721931,5.9777,167.27,167.25,0.04115412]
[1752488722128,5.9777,167.27,167.26,2.92962462]
[1752488726037,5.9779,167.26,167.25,0.04115412]
[1752488726338,3.14830832,167.26,167.18,3.14830832]
[1752488726534,3.14830832,167.26,167.19,4.68028544]
[1752488726831,3.14830832,167.26,167.18,3.14830832]
[1752488727025,3.14830832,167.26,167.19,4.68022576]
[1752488727228,3.14830832,167.26,167.2,4.68022576]
[1752488727425,3.14830832,167.28,167.16,5.02908392]
[1752488727630,3.14830832,167.28,167.21,3.14830832]
[1752488727834,0.03883198,167.25,167.21,3.14830832]
[1752488728136,6.01733198,167.25,167.21,9.12780832]
[1752488728534,6.01733198,167.25,167.21,3.14830832]
[1752488729139,6.01733198,167.25,167.22,5.9791]
[1752488729335,0.03883198,167.25,167.21,3.14830832]
[1752488730636,6.01723198,167.25,167.22,5.9792]
[1752488732239,0.03883198,167.25,167.2,5.9799]
[1752488732437,0.03883198,167.25,167.19,3.14830832]
[1752488732740,5.979,167.23,167.2,10.66027307]
[1752488732943,5.979,167.23,167.2,5.9799]
[1752488734237,5.979,167.23,167.21,5.9796]
[1752488734443,5.9787,167.24,167.21,3.14830832]
[1752488734645,0.03883198,167.25,167.22,4.68140417]
[1752488734832,0.03883198,167.25,167.23,9.12700832]
[1752488735431,0.03883198,167.25,167.24,5.9786]
[1752488737644,5.9767,167.3,167.27,5.9774]
[1752488738234,516.94,167.33,167.28,9.12520832]
[1752488738432,520.08830832,167.33,167.26,3.14830832]
[1752488738942,5.9765,167.3,167.28,0.04507703]
[1752488740547,9.98674106,167.41,167.28,0.04507703]
[1752488740840,3.14830832,167.39,167.32,3.14830832]
[1752488741040,3.14830832,167.38,167.31,5.976]
[1752488741240,3.14830832,167.38,167.3,3.14830832]
[1752488741444,3.14830832,167.38,167.34,0.04064819]
[1752488741840,5.9747,167.35,167.34,0.04064819]
[1752488742846,5.9744,167.36,167.34,0.04064819]
[1752488743245,3.14830832,167.39,167.34,0.04064819]
[1752488744146,5.9747,167.35,167.34,0.04064819]
[1752488746637,176.78,167.4,167.34,0.04064819]
[1752488746942,3.14830832,167.39,167.34,0.04064819]
[1752488747352,176.78,167.4,167.34,0.04064819]
[1752488747642,176.78,167.4,167.35,3.14830832]
[1752488747847,3.14830832,167.39,167.34,0.04064819]
[1752488748238,176.78,167.4,167.34,0.04064819]
[1752488748842,5.9731,167.4,167.36,5.9741]
[1752488749044,516.62,167.42,167.35,3.14830832]
[1752488749349,3.14830832,167.41,167.34,3.18895651]
[1752488749551,3.14830832,167.41,167.34,9.16365651]
[1752488750142,3.14830832,167.41,167.35,5.9747]
[1752488750644,5.9734,167.39,167.35,5.9747]
[1752488751242,5.9734,167.39,167.35,6.01365337]
[1752488751744,178.16,167.43,167.35,0.03895337]
[1752488751949,3.14830832,167.39,167.35,0.03895337]
[1752488752446,178.16,167.43,167.35,0.03895337]
[1752488752753,181.30830832,167.43,167.35,0.03895337]
[1752488753142,178.16,167.43,167.35,0.03895337]
[1752488753345,3.14830832,167.42,167.35,0.03895337]
[1752488753547,5.9737,167.38,167.35,6.01325337]
[1752488754151,5.9734,167.39,167.35,6.01325337]
[1752488754351,5.9734,167.39,167.36,5.9743]
[1752488754747,178.16,167.43,167.35,0.03895337]
[1752488754949,178.16,167.43,167.38,3.14830832]
[1752488755455,178.16,167.43,167.36,5.9742]
[1752488755755,178.16,167.43,167.31,5.02908392]
[1752488755954,178.16,167.43,167.39,0.0426273]
[1752488756246,178.16,167.43,167.3,5.02908392]
[1752488756447,5.9728,167.41,167.36,3.14830832]
[1752488756653,5.9728,167.41,167.39,0.04316843]
[1752488757248,178.16,167.43,167.39,0.04316843]
[1752488757954,5.9728,167.41,167.39,0.04316843]
[1752488759754,0.04329539,167.42,167.32,3.14830832]
[1752488759952,3.14830832,167.4,167.33,4.66066822]
[1752488760149,5.9734,167.39,167.34,10.63536822]
[1752488760455,3.14830832,167.38,167.29,8.17739224]
[1752488760655,9.12290832,167.36,167.3,4.66168121]
[1752488760851,3.14830832,167.36,167.31,4.66168121]
[1752488761057,0.04415522,167.35,167.32,4.66168121]
[1752488761258,0.04415522,167.35,167.31,5.9759]
[1752488761452,0.04415522,167.35,167.32,4.66216499]
[1752488761653,0.04415522,167.35,167.28,524.49739224]
[1752488761959,0.04415522,167.35,167.31,5.9758]
[1752488762457,0.04415522,167.35,167.3,5.9763]
[1752488762653,3.14830832,167.34,167.3,5.9763]
[1752488762957,5.9754,167.33,167.29,5.9768]
[1752488763159,3.14830832,167.34,167.26,3.14830832]
[1752488763455,3.14830832,167.32,167.27,4.66380163]
[1752488763655,5.9763,167.31,167.28,4.66380163]
[1752488763852,3.14830832,167.32,167.27,5.9772]
[1752488763853,3.19259166,167.32,167.27,5.9772]
[1752488764049,5.9765,167.3,167.24,3.14830832]
[1752488764252,0.04428334,167.32,167.27,3.14830832]
[1752488764452,0.04428334,167.32,167.28,4.66534691]
[1752488764649,5.9753,167.34,167.29,4.66534691]
[1752488764852,5.9753,167.34,167.27,3.14830832]
[1752488765052,0.04268162,167.32,167.28,4.66653786]
[1752488765353,0.04268162,167.32,167.29,5.9766]
[1752488765551,0.04268162,167.32,167.27,3.14830832]
[1752488765752,0.04268162,167.32,167.29,5.9768]
[1752488766150,0.04268162,167.32,167.27,3.14830832]
[1752488766353,0.04268162,167.32,167.28,4.66811778]
[1752488766548,0.04268162,167.32,167.29,5.9767]
[1752488766754,6.01848162,167.32,167.26,3.14830832]
[1752488767052,6.01848162,167.32,167.27,4.66875483]
[1752488767254,6.01848162,167.32,167.28,4.66875483]
[1752488767458,6.01848162,167.32,167.26,3.14830832]
[1752488767658,6.01848162,167.32,167.27,4.66915011]
[1752488767961,0.04268162,167.32,167.26,3.14830832]
[1752488768161,0.04268162,167.32,167.27,4.66930343]
[1752488768462,5.9755,167.33,167.3,5.9764]
[1752488768859,0.04032468,167.31,167.3,5.9764]
[1752488770458,3.14830832,167.38,167.33,5.9752]
[1752488771062,5.9742,167.37,167.33,5.9752]
[1752488771360,519.40830832,167.4,167.34,5.975]
[1752488771554,5.9737,167.38,167.34,5.975]
[1752488771755,519.40830832,167.4,167.35,6.01878493]
[1752488771959,516.26,167.4,167.35,6.01878493]
[1752488772262,5.9735,167.39,167.35,6.01878493]
[1752488772656,183.4,167.42,167.35,0.04418493]
[1752488772860,3.14830832,167.41,167.35,0.04418493]
[1752488773865,3.14830832,167.39,167.35,0.04418493]
[1752488774167,183.4,167.42,167.35,0.04418493]
[1752488774358,5.9732,167.4,167.35,0.04418493]
[1752488774955,5.9732,167.4,167.36,5.9741]
[1752488775464,5.9732,167.4,167.35,6.01878493]
[1752488776163,5.9726,167.41,167.36,5.9742]
[1752488776370,517.38,167.48,167.35,0.04418493]
[1752488776371,3.14830832,167.45,167.37,3.14830832]
[1752488776664,5.9723,167.42,167.38,5.9734]
[1752488777164,183.84,167.47,167.38,0.04088791]
[1752488777465,3.14830832,167.44,167.38,0.04088791]
[1752488777670,3.14830832,167.44,167.38,6.01428791]
[1752488777864,5.9722,167.42,167.38,6.01428791]
[1752488778363,3.14830832,167.44,167.38,0.04088791]
[1752488778963,5.9724,167.42,167.38,0.04088791]
[1752488779165,5.9724,167.42,167.38,6.01438791]
[1752488779866,3.14830832,167.42,167.38,0.04088791]
[1752488780764,5.9728,167.41,167.38,0.04088791]
[1752488781768,5.9728,167.41,167.38,6.01448791]
[1752488781970,5.9723,167.42,167.38,6.01448791]
[1752488782871,5.9719,167.43,167.39,5.973]
[1752488783270,5.9719,167.43,167.38,0.04088791]
[1752488783470,5.9719,167.43,167.39,5.9732]
[1752488783667,5.9722,167.42,167.39,5.9732]
[1752488783875,186.98830832,167.47,167.39,3.14830832]
[1752488784070,186.98830832,167.47,167.4,5.9726]
[1752488784270,5.9714,167.45,167.39,3.14830832]
[1752488784470,186.98830832,167.47,167.39,3.14830832]
[1752488784670,186.98830832,167.47,167.4,6.01587953]
[1752488784870,5.9717,167.44,167.4,6.01587953]
[1752488785072,186.98830832,167.47,167.4,6.01587953]
[1752488785274,5.9721,167.43,167.4,0.04307953]
[1752488785474,3.14830832,167.45,167.4,0.04307953]
[1752488785769,5.972,167.43,167.4,0.04307953]
[1752488786775,5.9725,167.42,167.4,0.04307953]
[1752488787172,3.14830832,167.45,167.4,0.04307953]
[1752488787373,183.84,167.47,167.4,0.04307953]
[1752488787578,3.14830832,167.46,167.4,0.04307953]
[1752488788671,517.38,167.48,167.4,0.04307953]
[1752488788873,1.0,167.48,167.4,0.04307953]
[1752488789080,1.0,167.48,167.41,4.63539582]
[1752488789278,1.0,167.48,167.42,4.63539582]
[1752488789279,5.971,167.46,167.42,4.63539582]
[1752488789484,3.14830832,167.46,167.4,0.04307953]
[1752488789872,5.971,167.46,167.41,5.9725]
[1752488790574,1.0,167.48,167.41,3.14830832]
[1752488790873,1.0,167.48,167.43,3.14830832]
[1752488791078,1.0,167.48,167.4,0.04307953]
[1752488791274,1.0,167.48,167.43,3.14830832]